Cogmind - Beta 12 @@@ ROGUE MODE // 2023.03.29 @ 15:09:43 Player: Exp. Geonium Core Result: Destroyed by G-50 Soldier with Heavy Laser Performance ------------- Evolutions (2) 1000 Regions Visited (10) 2000 Robots Destroyed (119) 595 Value Destroyed (3942) 3942 Prototype IDs (37) 740 Alien Tech Used (0) 0 Bonus (1479) 1479 TOTAL SCORE: 9756 Bonus ------- High Alert Combat Kills 416 Follower Combat Kills 35 Entered Garrisons 400 Used RIF Installer 500 Aligned with FarCom 300 Friendly Fire -172 Cogmind --------- Core Integrity 0/550 Matter 290/300 Energy 200/200 System Corruption 1% Temperature Cool (9) Movement Walking (260) Ox2 Location -8/Garrison Parts ------- > --- POWER (1) -------- Cold Fusion Reactor > --- PROPULSION (4) --- Light Treads Carbon-fiber Leg Carbon-fiber Leg Carbon-fiber Leg > --- UTILITY (4) ------ Huge Storage Unit 8R-AWN's Armor/EX > --- WEAPON (2) ------- Enhanced Autogun Axe > --- INVENTORY (25) --- Light Nuclear Core Light Treads Aluminum Leg Experimental Heat Sink Improved Sensor Array Light Armor Plating Hacking Suite Relay Coupler [NC] (35) Relay Coupler [Swarmer] (50) Relay Coupler [Swarmer] (43) Relay Coupler [Grunt] (26) Relay Coupler [Brawler] (26) Improved System Guard System Restoration Module Advanced Recalibrator AS-neutralizer No. 17b Enhanced Autogun Enhanced Autogun Enhanced Autogun Enhanced Autogun Enhanced Autogun 8R-AWN's Boregun Improved Datajack Remote Datajack Remote Datajack Peak State ------------ > --- POWER ------------ Reinforced Fission Core > --- PROPULSION ------- Aluminum Leg Advanced Myomer Leg Advanced Myomer Leg > --- UTILITY ---------- Huge Storage Unit Experimental Targeting Computer Advanced Weapon Cycler > --- WEAPON ----------- 8R-AWN's Boregun 8R-AWN's Boregun > --- INVENTORY -------- Cold Fusion Reactor Light Treads Wheel Advanced Launcher Guidance Computer Improved Target Analyzer 8R-AWN's Armor/EX EX Chip 1 EX Chip 1 EX Chip 1 Improved System Guard Advanced Recalibrator Improved Medium Laser Improved Medium Laser Advanced Beam Cannon Advanced Beam Cannon Advanced Beam Cannon Rocket Launcher Mini Grenade Launcher Datajack Axe Axe Axe [Rating: 68] Favorites ----------- Power Reinforced Fission Core Engine Light Deuterium Engine Power Core Reinforced Fission Core Reactor Cold Fusion Reactor Propulsion Advanced Myomer Leg Treads Light Treads Leg Advanced Myomer Leg Wheel Armored Wheel Utility Huge Storage Unit Device Advanced Weapon Cycler Storage Huge Storage Unit Processor Experimental Targeting Computer Hackware System Shield Protection Medium Armor Plating Weapon 8R-AWN's Boregun Energy Gun Medium Laser Energy Cannon Advanced Beam Cannon Ballistic Gun 8R-AWN's Boregun Launcher Mini Grenade Launcher Special Weapon Remote Datajack Impact Weapon Great Maul Slashing Weapon Axe Build | -11 -10 -10 -9 -9 -9 -8 -8 -8 -8 -8 ------- Run | Jun Mat Min Mat Min Exi Min Mat Gar Mat Gar Slots Evolved 4 | . . . 2 . . . 2 . . . Power . | . . . . . . . . . . . Propulsion 2 | . . . 1 . . . 1 . . . Utility 2 | . . . 1 . . . 1 . . . Weapon . | . . . . . . . . . . . Parts Attached 124 | 2 10 2 20 1 22 2 19 17 19 10 Power 6 | . 1 . 2 . 1 . . 1 . 1 Engine 3 | . 1 . 2 . . . . . . . Core 1 | . . . . . 1 . . . . . Reactor 2 | . . . . . . . . 1 . 1 Propulsion 41 | 2 3 2 7 . 6 . 8 7 2 4 Treads 13 | 2 2 1 2 . . . 3 . 1 2 Leg 20 | . . . 3 . 5 . 2 7 1 2 Wheel 8 | . 1 1 2 . 1 . 3 . . . Hover . | . . . . . . . . . . . Flight . | . . . . . . . . . . . Utility 34 | . 2 . 3 . 6 . 5 4 12 2 Device 11 | . 1 . . . 4 . . 1 5 . Storage 1 | . 1 . . . . . . . . . Processor 3 | . . . 1 . 1 . . . 1 . Hackware 8 | . . . . . . . 2 . 6 . Protection 11 | . . . 2 . 1 . 3 3 . 2 Artifact . | . . . . . . . . . . . Weapon 43 | . 4 . 8 1 9 2 6 5 5 3 Energy Gun 2 | . 1 . . . 1 . . . . . Energy Cannon 7 | . . . 3 . 1 . 2 1 . . Ballistic Gun 17 | . 2 . 2 . 4 1 2 2 2 2 Ballistic Cannon . | . . . . . . . . . . . Launcher 8 | . 1 . 3 1 . 1 1 1 . . Special Weapon 3 | . . . . . . . . . 3 . Impact Weapon 1 | . . . . . . . 1 . . . Slashing Weapon 5 | . . . . . 3 . . 1 . 1 Piercing Weapon . | . . . . . . . . . . . Special Melee Weapon . | . . . . . . . . . . . Unidentified Prototypes 11 | . . . 1 . 8 . . 2 . . Parts Lost 25 | . . 4 7 . 2 . 5 7 . . Power 1 | . . . 1 . . . . . . . Propulsion 12 | . . 2 3 . 1 . 4 2 . . Utility 4 | . . . 1 . 1 . 1 1 . . Weapon 8 | . . 2 2 . . . . 4 . . Highest Loss Streak 5 | . . 4 5 . 1 . 1 2 . . To Critical Strikes 1 | . . . . . 1 . . . . . Average Slot Usage (%) 93 | . 90 90 81 98 93 100 99 93 97 79 Engine 3 | . 14 14 10 11 6 . . . . . Core 4 | . . . . . 4 11 9 1 . . Reactor 1 | . . . . . . . . 7 9 8 Treads 4 | . 23 14 4 11 3 . 2 3 . 4 Leg 22 | . . . 21 . 22 33 20 24 36 30 Wheel 7 | . 4 9 5 22 6 . 12 7 . . Device 2 | . 5 14 2 . 3 . . 3 7 . Storage 10 | . 14 14 11 11 11 11 9 9 9 9 Processor 7 | . . . 6 11 11 11 7 . 8 . Hackware 5 | . . . . . . . 16 7 8 4 Protection 5 | . . . 8 11 3 11 2 11 . 4 Energy Cannon 2 | . . . 6 11 3 . 1 1 . . Ballistic Gun 6 | . 10 14 6 . 8 11 1 9 . 5 Launcher 4 | . . . . 10 3 11 10 . . . Impact Weapon 1 | . . . . . . . 4 2 . . Slashing Weapon 2 | . . . . . 4 . . 3 9 8 Naked Turns . | . . . . . . . . . . . Heaviest Build 125 | 13 89 89 96 99 120 115 116 125 102 122 Greatest Support 90 | 40 40 16 30 20 70 70 90 55 55 55 Greatest Overweight (x) 30 | . 8 8 9 4 30 1 8 8 1 8 Average Overweight (x) 2 | . 3 7 3 4 2 1 1 2 1 1 Largest Inventory Capacity 25 | 8 25 25 25 25 25 25 25 25 25 25 Average Capacity 24 | 8 13 25 25 25 25 25 25 25 25 25 Most Carried 25 | 6 11 11 25 25 25 25 25 25 25 25 Average Carried 23 | 5 7 10 22 24 23 24 24 23 24 23 Final Capacity 25 | 8 25 25 25 25 25 25 25 25 25 25 Final Carried 25 | 4 11 9 25 25 24 25 25 25 23 25 Class Distribution -------------------- 72% | Scavenger-Mutant 14% | Mutant 8% | Bothacker-Mutant 5% | Hacker-Mutant Dominant Class ---------------- Mutant | -10/Materials Mutant | -10/Mines Scavenger-Mutant | -9/Materials Scavenger-Mutant | -9/Mines Scavenger-Mutant | -9/Exiles Scavenger-Mutant | -8/Mines Scavenger-Mutant | -8/Materials Scavenger-Mutant | -8/Garrison Bothacker-Mutant | -8/Materials Scavenger-Mutant | -8/Garrison Resources | -11 -10 -10 -9 -9 -9 -8 -8 -8 -8 -8 ----------- Run | Jun Mat Min Mat Min Exi Min Mat Gar Mat Gar Matter Collected 3143 | 200 102 . 307 . 637 132 622 661 321 161 Remotely . | . . . . . . . . . . . Salvage Created 4112 | . 169 . 773 44 305 306 1372 827 147 169 Parts 281 | . 12 . 49 7 52 21 76 48 7 9 Haulers Intercepted 6 | . . . 4 . . . 2 . . . Recyclers Shooed 6 | . 2 . 4 . . . . . . . Parts Field Recycled . | . . . . . . . . . . . Retrieved Matter . | . . . . . . . . . . . Parts Self-Destructed . | . . . . . . . . . . . Prevented . | . . . . . . . . . . . Kills | -11 -10 -10 -9 -9 -9 -8 -8 -8 -8 -8 ------- Run | Jun Mat Min Mat Min Exi Min Mat Gar Mat Gar Combat Hostiles Destroyed 92 | . 5 . 18 8 2 7 30 16 3 3 Melee 2 | . . . . . . . 1 . . 1 Guns 37 | . 2 . 6 . 1 3 7 13 3 2 Cannons 10 | . . . 4 . 1 . 3 2 . . AOE 39 | . 3 . 8 8 . 4 15 1 . . Classes Destroyed 18 | . 3 . 7 . 3 . 3 1 . 1 Worker 4 | . . . 2 . . . 2 . . . Builder 1 | . . . 1 . . . . . . . Tunneler 2 | . . . 1 . . 1 . . . . Hauler 6 | . . . 4 . . . 2 . . . Recycler 2 | . 1 . . . . 1 . . . . Mechanic 2 | . . . 1 . . . 1 . . . Operator 3 | . . . . . . . 3 . . . Turret 1 | . . . . . 1 . . . . . Watcher 3 | . . . . . . . 3 . . . Swarmer 25 | . 3 . 6 8 . 4 4 . . . Saboteur 1 | . . . . . . . . . . 1 Grunt 43 | . 2 . 10 . . 3 16 10 2 . Duelist 1 | . . . 1 . . . . . . . Sentry 14 | . . . 1 . . . 7 2 1 3 Hunter 4 | . . . . . . . 3 1 . . Programmer 3 | . . . . . . . . 3 . . Zionite 1 | . . . . . 1 . . . . . Assembled 1 | . . . . . 1 . . . . . Best Kill Streak 10 | . 3 . 6 4 2 4 10 4 2 3 Combat Bots Only 6 | . 3 . 6 4 1 4 6 4 2 3 Max Kills in Single Turn 4 | . 3 . 3 4 1 3 3 2 1 1 Gunslinging . | . . . . . . . . . . . Exploded 4 | . 3 . 3 4 . 3 2 1 . . Melee 1 | . . . . . . . 1 . . 1 Uniques/NPCs Destroyed 4 | . . . . . 4 . . . . . 8R-AWN (-9/Exiles) EX-HEX (-9/Exiles) EX-DEC (-9/Exiles) EX-BIN (-9/Exiles) Combat | -11 -10 -10 -9 -9 -9 -8 -8 -8 -8 -8 -------- Run | Jun Mat Min Mat Min Exi Min Mat Gar Mat Gar Damage Taken 5184 | . 210 380 915 104 324 231 1645 964 141 270 Core 1096 | . 56 133 151 10 145 50 302 143 44 62 Absorbed by Shields 19 | . . . . . . . . 19 . . Redirected to Shielding 29 | . . . 8 . . . 5 16 . . Core Remaining (%) 45 | 100 . 24 . . . 11 . . . . Volleys Fired 334 | . 18 . 77 4 28 14 98 53 33 9 Largest 2 | . 2 . 2 1 2 1 1 2 1 2 Hottest 70 | . 70 . 68 68 68 30 68 68 30 50 Shots Fired 419 | . 35 . 107 4 43 14 98 73 33 12 Gun 281 | . 34 . 70 . 38 12 45 63 10 9 Cannon 66 | . . . 30 1 5 . 22 8 . . Launcher 46 | . 1 . 7 3 . 2 31 2 . . Special 26 | . . . . . . . . . 23 3 Kinetic 264 | . 17 . 70 . 38 12 45 63 10 9 Thermal 83 | . 17 . 30 1 5 . 22 8 . . Explosive 46 | . 1 . 7 3 . 2 31 2 . . Electromagnetic . | . . . . . . . . . . . Robot Hit Streak 18 | . 6 . 15 2 8 9 18 6 11 12 Robot Miss Streak 4 | . 4 . 3 1 3 2 3 3 3 . Penetration Max 2 | . . . . . 1 2 1 2 . . Secondary Targets 5 | . 1 . 1 . . . . 2 . 1 Max Gunslinging Chain 1 | . 1 . 1 . . . . 1 . 1 Shots Hit Robots 307 | . 24 . 70 2 43 11 78 43 23 13 Core Hits 185 | . 12 . 37 9 19 11 63 23 5 6 Critical Kills 26 | . . . 1 . . 3 8 13 1 . Critical Parts Destroyed 24 | . . . . . 6 2 10 6 . . Critical Strikes 59 | . 1 . 1 . 13 5 19 19 1 . Burn 1 | . 1 . . . . . . . . . Meltdown 1 | . . . 1 . . . . . . . Destroy 52 | . . . . . 10 5 17 19 1 . Smash 2 | . . . . . . . 2 . . . Sever 3 | . . . . . 3 . . . . . Melee Attacks 63 | . . . . . 18 . 19 15 . 11 Impact 30 | . . . . . . . 19 11 . . Slashing 33 | . . . . . 18 . . 4 . 11 Piercing . | . . . . . . . . . . . Sneak Attacks 3 | . . . . . . . 2 . . 1 Combat Hostiles 1 | . . . . . . . 1 . . . Follow-up Attacks . | . . . . . . . . . . . Damage Inflicted 9170 | . 366 . 1602 406 1207 521 3623 1028 175 242 Guns 3202 | . 238 . 651 . 492 226 603 700 155 137 Cannons 1066 | . . . 514 20 82 . 368 82 . . Explosions 3508 | . 128 . 437 384 . 295 2056 208 . . Melee 1372 | . . . . . 633 . 596 38 . 105 Ramming 22 | . . . . 2 . . . . 20 . Kinetic 3078 | . 114 . 651 . 492 226 603 700 155 137 Thermal 1495 | . 124 . 514 20 82 . 673 82 . . Explosive 3203 | . 128 . 437 384 . 295 1751 208 . . Electromagnetic . | . . . . . . . . . . . Impact 634 | . . . . . . . 596 38 . . Slashing 738 | . . . . . 633 . . . . 105 Piercing . | . . . . . . . . . . . Highest Corruption 1 | . . . . . . . . 1 1 1 Average Corruption 1 | . . . . . . . . 1 1 1 Corruption Purged 1 | . . . . . . . . . 1 . Corruption Blocked . | . . . . . . . . . . . Effects 5 | . . . . . . . . 2 3 . Message Errors 4 | . . . . . . . . 2 2 . Heat Flow Errors 1 | . . . . . . . . . 1 . Overload Shots . | . . . . . . . . . . . Overflow Damage 275 | . . . 60 23 . . 192 . . . Projectiles 22 | . . . 22 . . . . . . . Explosions 93 | . . . 38 23 . . 32 . . . Melee 160 | . . . . . . . 160 . . . Knockbacks 3 | . . . . . . . 2 1 . . Impact 3 | . . . . . . . 2 1 . . Kinetic . | . . . . . . . . . . . Secondary . | . . . . . . . . . . . Self-Inflicted Damage 268 | . . . 70 52 . 6 109 31 . . Shots 9 | . . . 2 2 . 1 3 1 . . Rammed 1 | . . . . 1 . . . . . . Targets Rammed 4 | . . . . 1 . . . . 3 . Kicked 3 | . . . . . . . . . 3 . Crushed . | . . . . . . . . . . . Highest Temperature 256 | . 226 . 210 30 218 99 202 102 256 6 Average Temperature 62 | . 90 . 70 18 84 39 43 30 115 4 Received Heat Transfer 1617 | . 75 . 375 . . 90 450 465 81 81 Siege Activations . | . . . . . . . . . . . Robots Corrupted . | . . . . . . . . . . . Combat Hostiles . | . . . . . . . . . . . Parts Fried 5 | . . . . . . . 5 . . . Impact Corruptions 5 | . . . . . . . 5 . . . Robots Melted 2 | . . . 1 . . . 1 . . . Combat Hostiles 1 | . . . . . . . 1 . . . Parts Melted 2 | . . . 1 . . . 1 . . . Heat Transferred 2568 | . 444 . 925 37 148 . 866 148 . . Parts Sabotaged 6 | . . . . . . . . . . 6 Parts Stolen . | . . . . . . . . . . . Parts Stripped . | . . . . . . . . . . . Power Chain Reactions . | . . . . . . . . . . . Missiles Intercepted . | . . . . . . . . . . . Alert | -11 -10 -10 -9 -9 -9 -8 -8 -8 -8 -8 ------- Run | Jun Mat Min Mat Min Exi Min Mat Gar Mat Gar Peak Influence 773 | . 131 51 266 272 . 138 694 773 406 196 Initial 376 | . . 51 3 52 . . . 362 376 60 Average 277 | . 89 43 126 171 . 89 372 625 283 111 Maximum Alert Level 3 | . . . 1 1 . . 2 3 2 . Low Security (%) 52 | 100 100 100 92 66 . 100 19 . 24 100 Level 1 17 | . . . 7 33 . . 23 7 64 . Level 2 25 | . . . . . . . 56 55 10 . Level 3 5 | . . . . . . . . 37 . . Level 4 . | . . . . . . . . . . . Level 5 . | . . . . . . . . . . . High Security . | . . . . . . . . . . . Max Security . | . . . . . . . . . . . Squads Dispatched 5 | . . . 1 . . . 4 . . . Investigation 2 | . . . . . . . 2 . . . Extermination . | . . . . . . . . . . . Reinforcement 3 | . . . 1 . . . 2 . . . Assault . | . . . . . . . . . . . Garrison . | . . . . . . . . . . . Intercept . | . . . . . . . . . . . Searches Triggered . | . . . . . . . . . . . Construction Impeded 1 | . . . . . . . 1 . . . Haulers Reinforced . | . . . . . . . . . . . Active Scanning Responses . | . . . . . . . . . . . Cargo Convoy Interrupts . | . . . . . . . . . . . Stealth | -11 -10 -10 -9 -9 -9 -8 -8 -8 -8 -8 --------- Run | Jun Mat Min Mat Min Exi Min Mat Gar Mat Gar Distress Signals 8 | . . . 1 . . . 4 . 3 . Communications Jammed . | . . . . . . . . . . . Distress Signals . | . . . . . . . . . . . Times Spotted 191 | . 6 2 25 8 53 7 44 19 16 11 Peak Tracking Total 10 | . 3 2 4 4 10 4 8 3 7 6 Tactical Retreats 30 | . . . . . 24 . 4 1 . 1 Traps | -11 -10 -10 -9 -9 -9 -8 -8 -8 -8 -8 ------- Run | Jun Mat Min Mat Min Exi Min Mat Gar Mat Gar Traps Triggered 11 | . 4 . . . . . . 5 . 2 Indirectly . | . . . . . . . . . . . Trap Hack Attempts . | . . . . . . . . . . . Triggered . | . . . . . . . . . . . Disarmed . | . . . . . . . . . . . Reprogrammed . | . . . . . . . . . . . Reused . | . . . . . . . . . . . Traps Extracted . | . . . . . . . . . . . Installed . | . . . . . . . . . . . Triggered . | . . . . . . . . . . . Exploded 3 | . . . . . 3 . . . . . Machines | -11 -10 -10 -9 -9 -9 -8 -8 -8 -8 -8 ---------- Run | Jun Mat Min Mat Min Exi Min Mat Gar Mat Gar Machines Disabled 28 | . . . 1 1 11 2 10 1 1 1 Max in Single Turn 4 | . . . 1 1 1 1 4 1 . 1 Garrison Relay 2 | . . . . . . . . 1 . 1 Machines Repaired . | . . . . . . . . . . . Machines Sabotaged . | . . . . . . . . . . . Overloaded Fab Kills . | . . . . . . . . . . . Hacking | -11 -10 -10 -9 -9 -9 -8 -8 -8 -8 -8 --------- Run | Jun Mat Min Mat Min Exi Min Mat Gar Mat Gar Machines Accessed 15 | . 1 . 1 . 2 . 8 1 2 . Terminals 10 | . 1 . 1 . . . 6 1 1 . Fabricators . | . . . . . . . . . . . Repair Stations . | . . . . . . . . . . . Recycling Units . | . . . . . . . . . . . Scanalyzers 1 | . . . . . . . 1 . . . Garrison Access 2 | . . . . . . . 1 . 1 . Total Hacks 40 | . 1 . 3 . 2 . 28 2 4 . Successful 16 | . 1 . 1 . 2 . 9 1 2 . Failed 24 | . . . 2 . . . 19 1 2 . Catastrophic 2 | . . . . . . . 2 . . . Database Lockouts . | . . . . . . . . . . . Manual 28 | . 1 . 3 . 1 . 20 . 3 . Terminals 34 | . 1 . 3 . . . 25 2 3 . Fabricators . | . . . . . . . . . . . Repair Stations . | . . . . . . . . . . . Recycling Units . | . . . . . . . . . . . Scanalyzers 2 | . . . . . . . 2 . . . Garrison Access 2 | . . . . . . . 1 . 1 . Terminal Hacks 10 | . 1 . 1 . 2 . 4 1 1 . Record 1 | . . . . . 1 . . . . . Prototype ID Bank 1 | . . . . . . . 1 . . . Branch Access Points 3 | . 1 . 1 . . . 1 . . . Terminal Index 1 | . . . . . . . 1 . . . Unreport Threat 2 | . . . . . . . 1 . 1 . Garrison Registry 1 | . . . . . . . . 1 . . EX-Prototype ID Bank 1 | . . . . . 1 . . . . . Fabricator Hacks . | . . . . . . . . . . . Repair Station Hacks . | . . . . . . . . . . . Recycling Unit Hacks . | . . . . . . . . . . . Scanalyzer 2 | . . . . . . . 2 . . . Insert Component 1 | . . . . . . . 1 . . . Analyze 1 | . . . . . . . 1 . . . Garrison Access Hacks 2 | . . . . . . . 1 . 1 . Unlock Access 2 | . . . . . . . 1 . 1 . Unauthorized Hacks 2 | . . . . . . . 2 . . . Terminals 2 | . . . . . . . 2 . . . Botnet 1 | . . . . . . . 1 . . . Operators 1 | . . . . . . . 1 . . . Fabricators . | . . . . . . . . . . . Repair Stations . | . . . . . . . . . . . Recycling Units . | . . . . . . . . . . . Scanalyzers . | . . . . . . . . . . . Garrison Access . | . . . . . . . . . . . Data Cores Recovered 1 | . . . . . . . 1 . . . Used . | . . . . . . . . . . . Hacking Detections 10 | . 1 . 1 . . . 7 1 . . Full Trace Events 2 | . . . . . . . 2 . . . Feedback Events . | . . . . . . . . . . . Feedback Blocked . | . . . . . . . . . . . Robot Schematics Acquired . | . . . . . . . . . . . Robots Built . | . . . . . . . . . . . Authchips . | . . . . . . . . . . . Time . | . . . . . . . . . . . Total Robot Build Rating . | . . . . . . . . . . . Part Schematics Acquired 1 | . . . . . . . 1 . . . Parts Built . | . . . . . . . . . . . Authchips . | . . . . . . . . . . . Time . | . . . . . . . . . . . Total Part Build Rating . | . . . . . . . . . . . Parts Repaired . | . . . . . . . . . . . Time . | . . . . . . . . . . . Parts Recycled . | . . . . . . . . . . . Recycled Matter . | . . . . . . . . . . . Retrieved Matter . | . . . . . . . . . . . Retrieved Components . | . . . . . . . . . . . Parts Scanalyzed 1 | . . . . . . . 1 . . . Part Schematics Acquired 1 | . . . . . . . 1 . . . Parts Damaged . | . . . . . . . . . . . Bothacking | -11 -10 -10 -9 -9 -9 -8 -8 -8 -8 -8 ------------ Run | Jun Mat Min Mat Min Exi Min Mat Gar Mat Gar Used RIF Installer 1 | . . . . . . . . 1 . . Robots Hacked 15 | . . . . . . . . . 13 2 Non-combat 4 | . . . . . . . . . 4 . Combat 11 | . . . . . . . . . 9 2 Robot Hacks Applied 16 | . . . . . . . . . 14 2 map_walls 1 | . . . . . . . . . 1 . drop_inventory 2 | . . . . . . . . . 2 . map_route 1 | . . . . . . . . . 1 . find_garrison 1 | . . . . . . . . . 1 . overload_power 1 | . . . . . . . . . . 1 overwrite_iff 5 | . . . . . . . . . 5 . formatsys_high 5 | . . . . . . . . . 4 1 Relay Couplers Released 6 | . . . . . . . . 3 . 3 Machine Destruction 6 | . . . . . . . . 3 . 3 Attached 6 | . . . . . . . . . 6 . Fabnet Peak Effective % . | . . . . . . . . . . . Robots Rewired . | . . . . . . . . . . . Allies Hacked . | . . . . . . . . . . . Hacks Repelled . | . . . . . . . . . . . Allies | -11 -10 -10 -9 -9 -9 -8 -8 -8 -8 -8 -------- Run | Jun Mat Min Mat Min Exi Min Mat Gar Mat Gar Total Allies 10 | . . . . . . . . . 9 1 Largest Group 3 | . . . . . . . . . 3 2 Highest-Rated Group 48 | . . . . . . . . . 48 44 Highest-Rated Ally 29 | . . . . . . . . . 29 29 Total Orders 2 | . . . . . . . . . 2 . STAY 1 | . . . . . . . . . 1 . FOLLOW 1 | . . . . . . . . . 1 . Ally Attacks 39 | . . . . . . . . . 39 . Total Damage 401 | . . . . . . . . . 401 . Kills 3 | . . . . . . . . . 3 . Allies Corrupted . | . . . . . . . . . . . Allies Melted . | . . . . . . . . . . . Intel | -11 -10 -10 -9 -9 -9 -8 -8 -8 -8 -8 ------- Run | Jun Mat Min Mat Min Exi Min Mat Gar Mat Gar Robot Analysis Total . | . . . . . . . . . . . Derelict Logs Recovered 2 | . . . . 2 . . . . . . Drone Launches . | . . . . . . . . . . . Drone Recoveries . | . . . . . . . . . . . Exploration | -11 -10 -10 -9 -9 -9 -8 -8 -8 -8 -8 ------------- Run | Jun Mat Min Mat Min Exi Min Mat Gar Mat Gar Turns Passed 7607 | 5 259 30 822 460 1765 804 1708 825 497 432 Spaces Moved 3438 | 2 106 15 220 313 911 407 834 292 182 156 Core 1 | . . . . . 1 . . . . . Treads 64 | 2 62 . . . . . . . . . Legs 1956 | . . . 117 . 559 407 362 173 182 156 Wheels 1417 | . 44 15 103 313 351 . 472 119 . . Hover . | . . . . . . . . . . . Flight . | . . . . . . . . . . . Fastest Speed 120 | 160 160 175 140 140 140 190 120 120 190 190 Average Speed 177 | 160 176 195 251 140 172 190 150 197 190 225 Slowest Speed 1550 | 160 200 200 400 140 1550 190 210 260 190 680 Overloaded Moves . | . . . . . . . . . . . Propulsion Burnouts . | . . . . . . . . . . . Robots Hopped . | . . . . . . . . . . . Cave-ins Triggered . | . . . . . . . . . . . Exploration Rate (%) 43 | 2 27 10 30 79 84 80 78 41 31 20 Regions Visited 10 Branch Regions 4 Pre-discovered Areas 3 | . . 1 . 1 1 . . . . . Known Exits Taken 4 | . 1 . 1 . . . 1 . 1 . Unknown Exits Taken 5 | 1 . 1 . 1 1 1 . . . . Scrap Searched . | . . . . . . . . . . . Spaces Dug 47 | . . . 5 6 . . 29 6 . 1 Terrain Destroyed 347 | . 5 . 50 25 6 18 211 31 . 1 Melee 11 | . . . . . . . 4 6 . 1 Projectile 25 | . . . . . 6 3 7 9 . . AOE 306 | . 5 . 50 25 . 14 198 14 . . Terrain Rammed . | . . . . . . . . . . . Walls Destroyed . | . . . . . . . . . . . Machines Disabled . | . . . . . . . . . . . Actions | -11 -10 -10 -9 -9 -9 -8 -8 -8 -8 -8 --------- Run | Jun Mat Min Mat Min Exi Min Mat Gar Mat Gar Total 4466 | 5 142 16 380 327 1057 424 1145 450 309 211 Wait 283 | . 3 . 26 6 24 . 155 13 54 2 Move 3430 | 1 105 14 219 312 910 406 834 291 182 156 Hop . | . . . . . . . . . . . Pick Up 103 | . 6 . 26 2 21 1 9 22 8 8 Fast Attach 40 | . 6 . 10 . 7 . 8 5 . 4 Attach 34 | 2 . 2 4 1 3 1 4 7 6 4 Detach 7 | . . . 1 . 3 1 1 . . 1 Swap 50 | . 4 . 6 . 12 1 7 5 13 2 Drop 88 | 2 . . 11 1 31 . 10 22 7 4 Fire 334 | . 18 . 77 4 28 14 98 53 33 9 Melee 63 | . . . . . 18 . 19 15 . 11 Ram . | . . . . . . . . . . . Kick 3 | . . . . . . . . . 3 . Crush 1 | . . . . 1 . . . . . . Escape Stasis 27 | . . . . . . . . 17 . 10 Rewire 3 | . . . . . . . . . 3 . Trap . | . . . . . . . . . . . Miscellaneous . | . . . . . . . . . . . Route ------- -11/Junkyard -10/Materials (discovered 2 exits: *Min x2) -10/Mines -9/Materials -9/Mines (discovered 2 exits: *Mat / *Exi) -9/Exiles -8/Mines -8/Materials (discovered 3 exits: [*Fac x2] / Gar) -8/Garrison (discovered 3 exits: *Mat x3) -8/Materials -8/Garrison History --------- Turn | Location | Event 5 | -11/Junkyard | Discovered new exit (range 1) 6 | -11/Junkyard | Entered Materials 211 | -10/Materials | Identified exit to Mines 265 | -10/Materials | Entered Mines 266 | -10/Mines | Learned location of Storage (-7) 280 | -10/Mines | Assembled infested the area 285 | -10/Mines | Discovered new exit (range 6) 292 | -10/Mines | Core integrity fell below 50% 295 | -10/Mines | Entered Materials 295 | -9/Materials | Evolved 2 slots: Propulsion x1, Utility x1 311 | -9/Materials | Build established: Mutant 322 | -9/Materials | Lost 4 parts (2n2w) 633 | -9/Materials | Lost 5 parts (1p2n2w) 898 | -9/Materials | Build established: Scavenger-Mutant 933 | -9/Materials | Identified exit to Mines 1117 | -9/Materials | Entered Mines 1292 | -9/Mines | Received a Rocket Launcher from a helpful Derelict 1408 | -9/Mines | Discovered new exit (range 6) 1571 | -9/Mines | Deemed a non-threat by the Exiles lab entrance 1571 | -9/Mines | Discovered new exit (range 5) 1577 | -9/Mines | Entered Exiles 1611 | -9/Exiles | Met 8R-AWN 1636 | -9/Exiles | Met EX-HEX 1691 | -9/Exiles | Met EX-DEC 1696 | -9/Exiles | Learned location of Zion (-6) 1874 | -9/Exiles | Met EX-BIN 1896 | -9/Exiles | Aligned with FarCom system 1897 | -9/Exiles | Given EX-Vault access code 1930 | -9/Exiles | Opened EX-Vault 1941 | -9/Exiles | Found Longsword +1 1971 | -9/Exiles | Warned to stay clear of 0b10 Research branches 2037 | -9/Exiles | Attacked by the Exiles 2132 | -9/Exiles | Core integrity fell below 50% 2266 | -9/Exiles | Found Prototype Ballistic Gun 2271 | -9/Exiles | Found Prototype Ballistic Gun 2312 | -9/Exiles | Identified 8R-AWN's Boregun (x2) 2428 | -9/Exiles | Build established: Mutant 2522 | -9/Exiles | Destroyed 8R-AWN 2622 | -9/Exiles | Found Prototype Device 2622 | -9/Exiles | Identified AS-neutralizer No. 17b 2638 | -9/Exiles | Found Prototype Processor 2638 | -9/Exiles | Identified Exp. Targeting Computer 2675 | -9/Exiles | Destroyed EX-HEX 2710 | -9/Exiles | Destroyed EX-DEC 2739 | -9/Exiles | Destroyed EX-BIN 2859 | -9/Exiles | Found Prototype Protection 2911 | -9/Exiles | Build established: Scavenger-Mutant 3319 | -9/Exiles | Discovered new exit (range 14) 3342 | -9/Exiles | Entered Mines 3933 | -8/Mines | Core integrity fell below 20% 4129 | -8/Mines | Discovered new exit (range 9) 4146 | -8/Mines | Entered Materials 4146 | -8/Materials | Evolved 2 slots: Propulsion x1, Utility x1 4768 | -8/Materials | Discovered new exit (range 5) 5518 | -8/Materials | Core integrity fell below 50% 5742 | -8/Materials | Discovered new exit (range 10) 5854 | -8/Materials | Identified exit to Garrison 5854 | -8/Materials | Entered Garrison 5904 | -8/Garrison | Triggered checkpoint 5955 | -8/Garrison | Build established: Hacker-Mutant 5959 | -8/Garrison | Installed Relay Interface Framework 5971 | -8/Garrison | Garrison Relay disabled 6024 | -8/Garrison | Discovered new exit (range 56) 6024 | -8/Garrison | Discovered new exit (range 30) 6024 | -8/Garrison | Discovered new exit (range 51) 6032 | -8/Garrison | Triggered checkpoint 6128 | -8/Garrison | Triggered checkpoint 6309 | -8/Garrison | Triggered checkpoint 6326 | -8/Garrison | Build established: Scavenger-Mutant 6396 | -8/Garrison | Core integrity fell below 20% 6440 | -8/Garrison | Identified 8R-AWN's Armor/EX 6679 | -8/Garrison | Entered Materials 6743 | -8/Materials | Build established: Bothacker-Mutant 7176 | -8/Materials | Identified exit to Garrison 7176 | -8/Materials | Entered Garrison 7176 | -8/Garrison | Accompanied by 2 allies 7255 | -8/Garrison | Build established: Scavenger-Mutant 7370 | -8/Garrison | Triggered checkpoint 7509 | -8/Garrison | Garrison Relay disabled 7608 | -8/Garrison | Destroyed by G-50 Soldier with Heavy Laser Last Messages --------------- 07397_ E-15 Imp destroyed. 07399_ Y-45 Defender destroyed. 07402_ Acquired Cold Fusion Reactor. 07410_ Acquired Carbon-fiber Leg. 07423_ Acquired Aluminum Leg. 07427_ Acquired Remote Datajack. 07435_ Acquired 11 matter. 07466_ Extracted 130 matter. 07500_ Acquired Lgt. Treads. 07509_ Garrison Relay disabled. 07509_ Relay Coupler [Brawler] tumbles out of relay unit. 07509_ Relay Coupler [Swarmer] tumbles out of relay unit. 07509_ Relay Coupler [Grunt] tumbles out of relay unit. 07514_ Acquired Lgt. Armor Plating. 07518_ Acquired Relay Coupler [Grunt]. 07521_ Acquired Relay Coupler [Swarmer]. 07525_ Dropped Relay Coupler [Brawler]. 07525_ Acquired Relay Coupler [Brawler]. 07554_ Dropped 8R-AWN's Armor/EX. 07557_ Acquired 8R-AWN's Armor/EX. Map ----- +----------------------------------------------------+ | ?????????????????# ##/%#???????? #??????? | | ????????????????## ##!%#?????????? #??????? | | ????????????????# =%!%[#???????????? #??????? | | ????????????????# ! [**%#??????????????#??????? | | ????????????????### ###[!#?????????????????????? | | ?????????????????#"" ""##^%#?????????????????????? | | ?????????????????######## !#?????????????????????? | | ????????????????????????# #?????????????????????? | | ????????????????????????# #?????????????????????? | | ????????????????????????# #???????????????????### | | ????????????????????????# #??????????????????##"# | | ????????????????????????# #??????????????????# | | ??????????????########### #################### | | ??????????????# | | ??????????????# [= | | ??????????????# %! | | ??????????????# #######;######################+# | | ??????????????#?????????# #???????????# #?????# # | | ????????????????????????# #????????#### #####?# # | | ????????????????????????# ########## ### # | | ????????????????????????# | | ????????????????????????# ########## ##### | | ????????????????????????# #????????# " #???? | | ???????##""""## ????????# #??????"""" """ #??? | | ???? g ####### #??????##" " ##??? | | ???? ; @ #???????#" #???? | | ???? g # p #???????#" " #???? | | ???????## ## ??##########???????#"""""#####???? | | ????????#??????????????????????????#######???????? | | ?????????????????????????????????????????????????? | | ?????????????????????????????????????????????????? | | ?????????????????????????????????????????????????? | | ?????????????????????????????????????????????????? | | ?????????????????????????????????????????????????? | | ?????????????????????????????????????????????????? | | ?????????????????????????????????????????????????? | | ?????????????????????????????????????????????????? | | ?????????????????????????????????????????????????? | | ?????????????????????????????????????????????????? | | ?????????????????????????????????????????????????? | | ?????????????????????????????????????????????????? | | ?????????????????????????????????????????????????? | | ?????????????????????????????????????????????????? | | ?????????????????????????????????????????????????? | | ?????????????????????????????????????????????????? | | ?????????????????????????????????????????????????? | | ?????????????????????????????????????????????????? | | ?????????????????????????????????????????????????? | | ?????????????????????????????????????????????????? | | ?????????????????????????????????????????????????? | +----------------------------------------------------+ Best States ------------- Heat Dissipation 57 Energy Generation 19 Energy Capacity 310 Matter Stores 300 Matter Capacity 300 Sight Range 16 Robot Scan Range 15 Terrain Scan Density 10 Armor Coverage 900 Resistance: EX 90 Core Shielding 20 Utility Shielding 33 Weapon Shielding 33 Weapon Cycling 25 Evasion (%) 40 Targeting Accuracy 12 Recoil Reduction 2 Offensive Hacking 10 Defensive Hacking 10 Relay Coupler Types 2 Relay Coupler Value 76 Item Schematics ----------------- Hacking Suite | -8/Materials | Scanalyzed Robot Schematics ------------------ None Fabricated ------------ Nothing Alien Tech Used ----------------- None Achievements -------------- None Challenges ------------ None Game ------ Seed MiniRagnarokNullifier Manual? 0 Play Time 01:07:23 Cumulative 353.2 hours Start 2023.03.29 @ 02:24:54 End 2023.03.29 @ 15:09:43 Sessions 3 Manual Loads 0 Difficulty Rogue Special Mode None Game No. 401 Rogue 401 Adventurer 0 Explorer 0 Win Type - Total 11 Types 8/0/2/1/0/0/0/0/0 Lore% 80 Gallery% 89 Achievement% 78 Wizard Run 0 Options --------- ASCII 0 Keyboard 0 Movement Numpad Keybinds 0 Fullscreen 1 Font 18/Terminus Map View 76x50 Tactical HUD 1 Map Filters NONE Filters NONE Steam 1 RUN: 77005419-b1e7-46d8-8c03-f2c8bb1eaa92